bitfinex/quotes_SOLUSD_20260305
["timestamp","ask_amount","ask_price","bid_price","bid_amount"]
[1772688599267,0.18858958,90.195,90.132,1.256126]
[1772688602233,0.18703328,90.193,90.134,1.256126]
[1772688603747,11.08667013,90.199,90.134,1.256126]
[1772688603925,11.08667013,90.199,90.135,1.256126]
[1772688604125,11.08610578,90.203,90.139,1.256126]
[1772688604425,0.18602783,90.222,90.146,1.256126]
[1772688604636,0.18602783,90.222,90.147,1.256126]
[1772688604841,0.18602783,90.222,90.151,1.256126]
[1772688606235,0.18602783,90.222,90.147,13.2471973]
[1772688606236,0.18502258,90.22,90.156,1.256126]
[1772688608053,0.18405554,90.209,90.156,1.256126]
[1772688608262,0.18405554,90.198,90.158,1.256126]
[1772688610651,0.18314083,90.22,90.16,1.256126]
[1772688610852,0.18267922,90.218,90.16,1.256126]
[1772688613651,0.1818571,90.209,90.162,1.256126]
[1772688614070,0.1818571,90.209,90.161,11.09127006]
[1772688614071,0.18141268,90.199,90.15,1.256126]
[1772688614354,0.18141268,90.189,90.131,1.256126]
[1772688615853,0.18097774,90.187,90.133,1.256126]
[1772688618062,0.17824168,90.185,90.135,1.256126]
[1772688620358,11.0884414,90.184,90.137,1.24556058]
[1772688622755,0.17776786,90.189,90.139,1.24556058]
[1772688623863,11.08794961,90.188,90.141,1.24556058]
[1772688624646,11.08752658,90.192,90.141,1.24556058]
[1772688625851,11.08684324,90.197,90.142,38.82762751]
[1772688626170,0.17481472,90.196,90.143,1.24556058]
[1772688629456,0.17343466,90.194,90.145,1.2119296]
[1772688630450,0.17460102,90.192,90.147,1.2119296]
[1772688631280,4.24868323,90.19,90.137,1.2119296]
[1772688631452,0.17423617,90.189,90.137,1.2119296]
[1772688632671,0.17539681,90.187,90.139,1.2119296]
[1772688635375,0.17579819,90.185,90.141,1.2119296]
[1772688636469,11.0881955,90.186,90.141,1.2119296]
[1772688636668,0.17397273,90.197,90.141,1.2119296]
[1772688637363,4.24868323,90.19,90.143,1.2119296]
[1772688637571,0.1736146,90.189,90.143,1.2119296]
[1772688640871,0.17085051,90.187,90.145,1.2119296]
[1772688643284,0.16681912,90.185,90.145,1.2119296]
[1772688644467,0.16346998,90.179,90.138,1.2119296]
[1772688644994,0.16346998,90.179,90.132,1.2119296]
[1772688645197,0.16153396,90.167,90.127,11.09533827]
[1772688645978,0.16153396,90.167,90.126,1.2119296]
[1772688646685,0.16153396,90.167,90.117,12.30854831]
[1772688646887,0.16153396,90.167,90.118,1.2119296]
[1772688647270,0.15777731,90.165,90.12,1.2119296]
[1772688648372,0.15589994,90.163,90.122,1.2119296]
[1772688652397,0.14827141,90.161,90.113,1.2119296]
[1772688652583,0.14827141,90.159,90.113,1.2119296]
[1772688656394,0.14827141,90.159,90.115,1.2119296]
[1772688657876,0.14827141,90.159,90.084,50.1781889]
[1772688657877,0.14827141,90.159,90.107,1.2119296]
[1772688658072,0.13802627,90.156,90.107,1.2119296]
[1772688658496,0.13802627,90.156,90.109,1.2119296]
[1772688659003,0.13637379,90.163,90.109,1.2119296]
[1772688659181,11.09028601,90.169,90.109,1.2119296]
[1772688660692,0.13617562,90.171,90.111,1.2119296]
[1772688661081,0.13598107,90.188,90.114,1.2119296]
[1772688661380,38.80739335,90.189,90.11,83.2316058]
[1772688661381,11.08782667,90.189,90.119,1.2119296]
[1772688661798,11.08782667,90.189,90.12,1.2119296]
[1772688662795,0.13559499,90.201,90.124,3.69383402]
[1772688663092,0.13559499,90.201,90.125,1.2119296]
[1772688664892,0.13559499,90.201,90.127,1.2119296]
[1772688665105,0.13559499,90.201,90.132,1.2119296]
[1772688666900,0.12922435,90.218,90.136,1.2119296]
[1772688667100,0.12922435,90.218,90.138,1.2119296]
[1772688667306,0.12922435,90.218,90.141,1.2119296]
[1772688667478,0.12922435,90.218,90.143,1.2119296]
[1772688668700,11.0841397,90.219,90.149,1.2119296]
[1772688669003,0.1261358,90.23,90.154,3.69383402]
[1772688669187,0.1261358,90.23,90.155,1.2119296]
[1772688669390,0.1261358,90.23,90.161,1.2119296]
[1772688669805,0.12464135,90.237,90.166,1.2119296]
[1772688671295,0.12464135,90.237,90.171,1.2119296]
[1772688672586,11.20435942,90.243,90.171,1.2119296]
[1772688672986,60.98175297,90.239,90.171,1.2119296]
[1772688673902,60.98175297,90.239,90.176,1.2119296]
[1772688674783,61.10187546,90.239,90.176,1.2119296]
[1772688675197,0.12012249,90.238,90.176,1.2119296]
[1772688675403,49.9,90.239,90.176,1.2119296]
[1772688675596,6.84475878,90.249,90.182,1.2119296]
[1772688675898,6.84475878,90.249,90.191,1.2119296]
[1772688676100,6.84475878,90.249,90.192,1.2119296]
[1772688676301,6.84475878,90.249,90.194,1.2119296]
[1772688676708,0.11866862,90.248,90.194,1.2119296]
[1772688677291,6.84475878,90.249,90.194,1.2119296]
[1772688677610,6.84475878,90.249,90.196,1.2119296]
[1772688677827,6.84475878,90.249,90.199,38.80309094]
[1772688678104,6.84475878,90.249,90.2,1.2119296]
[1772688678696,6.84475878,90.249,90.201,1.23035482]
[1772688679016,6.84475878,90.249,90.203,1.23035482]
[1772688681111,0.2,90.25,90.205,1.23035482]
[1772688681299,0.2,90.26,90.206,1.1085737]
[1772688681601,0.2,90.26,90.207,1.23035482]
[1772688681909,0.2,90.26,90.209,1.23035482]
[1772688682111,0.2,90.26,90.211,1.23035482]
[1772688682710,11.18693771,90.259,90.211,1.23035482]
[1772688683018,0.10771016,90.258,90.211,1.23035482]
[1772688683620,0.10771016,90.258,90.213,1.23035482]
[1772688685411,0.10384383,90.249,90.212,11.08499977]
[1772688685812,0.10260601,90.248,90.202,28.94579545]
[1772688686392,0.10260601,90.248,90.2,11.0864745]
[1772688686820,0.09999424,90.239,90.2,11.0864745]
[1772688689226,0.09999424,90.239,90.201,1.2119296]
[1772688689904,0.09999424,90.239,90.195,11.08705037]
[1772688690501,0.09999424,90.239,90.195,12.29897997]
[1772688690702,0.09999424,90.239,90.195,11.08705037]
[1772688690898,0.09999424,90.239,90.196,1.2119296]
[1772688692520,0.09999424,90.239,90.198,1.2119296]
[1772688695818,0.09999424,90.239,90.2,1.2119296]
[1772688698032,0.09999424,90.239,90.202,1.2119296]
[1772688701110,0.09999424,90.239,90.203,11.08610578]
[1772688701834,0.09999424,90.239,90.2,11.08636964]
[1772688702328,0.07931405,90.229,90.18,1.2119296]
[1772688703629,0.07402426,90.228,90.181,1.2119296]
[1772688707038,0.07402426,90.228,90.183,1.2119296]
[1772688709324,0.07402426,90.228,90.184,38.80954492]
[1772688709528,0.07402426,90.228,90.185,1.2119296]
[1772688711537,0.07402426,90.228,90.187,1.2119296]
[1772688712218,0.03470999,90.246,90.187,1.2119296]
[1772688713623,0.03470999,90.246,90.189,1.2119296]
[1772688714853,0.02642057,90.239,90.189,1.2119296]
[1772688716629,0.02642057,90.239,90.177,27.7230785]
[1772688716630,4.2447859,90.23,90.186,11.08815774]
[1772688717624,4.2447859,90.22,90.176,11.08942512]
[1772688718146,4.2447859,90.22,90.177,1.2119296]
[1772688718446,4.2447859,90.23,90.177,1.2119296]
[1772688720143,4.2447859,90.22,90.178,11.08917917]
[1772688720322,4.2447859,90.22,90.179,1.2119296]
[1772688720528,4.2447859,90.23,90.179,1.2119296]
[1772688723844,38.79018939,90.229,90.181,1.2119296]
[1772688725362,4.2447859,90.22,90.181,1.2119296]
[1772688726537,38.79448896,90.219,90.181,1.2119296]
[1772688726940,38.79448896,90.219,90.183,1.2119296]
[1772688728753,38.79448896,90.219,90.185,1.2119296]
[1772688730549,11.08291125,90.229,90.185,1.2119296]
[1772688731054,4.2447859,90.24,90.187,1.2119296]
[1772688731245,4.2447859,90.23,90.187,1.2119296]
[1772688731654,4.2447859,90.24,90.187,1.2119296]
[1772688733153,4.2447859,90.23,90.189,1.2119296]
[1772688733533,4.2447859,90.24,90.189,1.2119296]
[1772688734739,38.78589079,90.239,90.19,11.08770373]
[1772688734937,38.78589079,90.239,90.191,1.2119296]
[1772688735358,4.2447859,90.2,90.161,1.2119296]
[1772688735657,4.2447859,90.21,90.161,1.2119296]
[1772688736159,3.69383402,90.236,90.161,1.2119296]
[1772688736358,4.2447859,90.21,90.161,1.2119296]
[1772688736543,4.2447859,90.22,90.161,1.2119296]
[1772688737659,4.2447859,90.21,90.162,11.09114704]
[1772688737857,4.2447859,90.21,90.163,1.2119296]
[1772688740066,94.19848173,90.235,90.153,2.96019707]
[1772688740067,4.2447859,90.22,90.165,1.2119296]
[1772688741666,3.69383402,90.228,90.165,1.2119296]
[1772688742162,38.79104923,90.227,90.167,1.2119296]
[1772688742755,27.70425606,90.239,90.167,1.2119296]
[1772688744763,4.2447859,90.23,90.169,1.2119296]
[1772688745467,4.2447859,90.24,90.169,1.2119296]
[1772688746748,38.78589079,90.239,90.171,1.2119296]
[1772688749569,4.2447859,90.24,90.173,1.2119296]
[1772688749949,4.2447859,90.23,90.173,1.2119296]
[1772688752451,4.24650288,90.23,90.174,38.81384878]
[1772688752774,4.24650288,90.23,90.175,1.2119296]
[1772688754676,38.79018939,90.229,90.177,1.2119296]
[1772688757270,4.24650288,90.25,90.177,1.2119296]
[1772688757465,4.24650288,90.25,90.179,1.2119296]
[1772688757466,38.78159314,90.249,90.179,1.2119296]
[1772688758072,4.24650288,90.24,90.179,1.2119296]
[1772688759075,38.78159314,90.249,90.179,1.2119296]
[1772688759873,27.70113796,90.249,90.181,1.2119296]
[1772688762489,11.07959581,90.256,90.186,1.2119296]
[1772688763661,11.07959581,90.256,90.176,44.35734673]
[1772688763662,11.07959581,90.256,90.188,1.2119296]
[1772688764267,4.24650288,90.25,90.188,1.2119296]
[1772688765554,11.07959581,90.256,90.19,1.2119296]
[1772688766983,4.24650288,90.25,90.19,1.2119296]
[1772688767887,38.78159314,90.249,90.192,1.2119296]
[1772688769786,38.77729644,90.259,90.194,1.2119296]
[1772688771783,38.77729644,90.259,90.196,1.2119296]
[1772688773783,38.77729644,90.259,90.198,1.2119296]
[1772688774584,11.07922755,90.259,90.198,1.2119296]
[1772688776089,11.07922755,90.259,90.2,1.2119296]
[1772688780488,38.77729644,90.259,90.202,1.2119296]
[1772688782492,38.77729644,90.259,90.201,38.80223057]
[1772688782493,11.07922755,90.259,90.203,38.80137023]
[1772688782678,11.07922755,90.259,90.204,1.2119296]
[1772688783684,0.2,90.26,90.204,1.2119296]
[1772688784596,11.07922755,90.259,90.204,1.2119296]
[1772688785778,0.2,90.26,90.206,1.2119296]
[1772688786294,11.27922125,90.26,90.206,1.2119296]
[1772688786491,0.2,90.26,90.206,1.2119296]
[1772688787390,0.2,90.26,90.206,1.1085737]
[1772688787587,0.2,90.26,90.209,1.2119296]
[1772688787986,0.2,90.26,90.213,3.69383402]
[1772688788297,0.2,90.26,90.214,1.2119296]
[1772688789803,11.07743314,90.274,90.214,1.2119296]
[1772688791895,27.68948226,90.287,90.216,1.2119296]
[1772688792094,11.0755463,90.289,90.216,1.2119296]
[1772688792491,38.76441205,90.289,90.216,1.2119296]
[1772688793307,11.0744424,90.298,90.219,1.2119296]
[1772688793988,11.0744424,90.298,90.228,3.69383402]
[1772688794188,11.0744424,90.298,90.229,1.2119296]
[1772688795197,11.0744424,90.298,90.234,1.2119296]
[1772688795513,6.99998266,90.299,90.234,1.2119296]
[1772688795699,18.07439749,90.299,90.234,1.2119296]
[1772688797299,18.07439749,90.299,90.236,1.2119296]
[1772688800818,18.07439749,90.299,90.238,1.2119296]
[1772688803213,18.07439749,90.299,90.239,38.78589079]
[1772688803394,18.07439749,90.299,90.24,1.2119296]
[1772688804713,18.07439749,90.299,90.242,1.2119296]
[1772688805819,45.76019688,90.299,90.243,38.78417162]
[1772688806020,45.76019688,90.299,90.244,1.2119296]
[1772688806807,4.24650288,90.29,90.244,1.2119296]
[1772688807010,45.76019688,90.299,90.244,1.2119296]
[1772688808022,45.76019688,90.299,90.243,38.78417162]
[1772688808023,45.76019688,90.299,90.246,1.2119296]
[1772688808214,4.24650288,90.29,90.245,11.08094631]
[1772688808709,4.24650288,90.29,90.245,12.29287591]
[1772688809599,45.76019688,90.299,90.245,12.29287591]
[1772688809801,45.76019688,90.299,90.246,1.2119296]
[1772688810323,4.24650288,90.29,90.221,1.2119296]
[1772688810724,4.24650288,90.28,90.221,1.2119296]
[1772688811099,4.24650288,90.29,90.221,1.2119296]
[1772688811501,4.24650288,90.28,90.221,1.2119296]
[1772688812502,4.24650288,90.29,90.223,1.2119296]
[1772688813624,101.13179567,90.299,90.223,1.2119296]
[1772688813821,45.76019688,90.299,90.223,1.2119296]
[1772688814624,45.76019688,90.299,90.225,1.2119296]
[1772688815717,38.76021422,90.299,90.227,1.2119296]
[1772688817720,38.75604863,90.309,90.229,1.2119296]
[1772688820426,4.23951936,90.3,90.231,1.2119296]
[1772688821625,38.75604863,90.309,90.233,1.2119296]
[1772688821930,38.75604863,90.309,90.236,1.2119296]
[1772688822636,38.75604863,90.309,90.238,1.2119296]
[1772688822938,11.07309349,90.309,90.241,1.2119296]
[1772688824449,11.07309349,90.309,90.242,1.2119296]
[1772688824947,11.07309349,90.309,90.244,1.2119296]
[1772688825523,4.23951936,90.3,90.244,1.2119296]
[1772688827015,38.76011914,90.299,90.246,1.2119296]
[1772688828130,4.23951936,90.29,90.246,1.2119296]
[1772688828914,38.76011914,90.299,90.246,1.2119296]
[1772688829117,38.75582721,90.309,90.247,11.08070074]
[1772688829322,38.75582721,90.309,90.248,1.2119296]
[1772688829323,4.23951936,90.3,90.248,1.2119296]
[1772688832434,4.23951936,90.3,90.247,38.78245259]
[1772688832435,4.23951936,90.3,90.25,1.2119296]
[1772688835826,38.76011914,90.299,90.252,1.2119296]
[1772688838221,4.23951936,90.29,90.252,1.2119296]
[1772688838421,4.23951936,90.29,90.253,11.0799641]
[1772688838622,4.23951936,90.3,90.254,1.2119296]
[1772688839225,4.23951936,90.29,90.247,1.2119296]
[1772688845050,4.23951936,90.27,90.219,1.2119296]
[1772688845852,38.76441205,90.289,90.219,1.2119296]
[1772688845853,4.23951936,90.26,90.219,1.2119296]
[1772688847932,4.23951936,90.26,90.217,11.08438542]
[1772688847933,38.77729644,90.259,90.221,1.2119296]
[1772688848848,38.77729644,90.259,90.222,11.08377114]
[1772688849158,4.23951936,90.25,90.218,11.08419594]
[1772688850155,4.23951936,90.25,90.214,12.29661844]
[1772688852148,38.78159314,90.249,90.215,1.2119296]
[1772688852330,38.78159314,90.249,90.184,1.2119296]
[1772688852836,4.23951936,90.24,90.184,1.2119296]
[1772688854039,38.78589079,90.239,90.185,38.80911459]
[1772688854238,38.78589079,90.239,90.186,1.2119296]
[1772688856355,38.78589079,90.239,90.188,1.2119296]
[1772688860860,38.78589079,90.239,90.19,1.2119296]
[1772688864166,104.9,90.27,90.189,38.80739335]
[1772688864167,4.23951936,90.23,90.192,1.2119296]
[1772688866370,11.08291125,90.229,90.194,1.2119296]
[1772688868363,11.08291125,90.229,90.195,11.08708908]
[1772688868665,11.08291125,90.229,90.195,12.29901868]
[1772688868867,11.08291125,90.229,90.195,11.08708908]
[1772688869070,11.08291125,90.229,90.196,1.2119296]
[1772688870358,11.08131468,90.242,90.198,1.2119296]
[1772688871273,11.08071985,90.247,90.198,1.2119296]
[1772688874965,27.70023161,90.252,90.2,1.2119296]
[1772688875170,4.23951936,90.25,90.2,1.2119296]
[1772688875775,27.70023161,90.252,90.2,1.2119296]
[1772688875776,4.23951936,90.24,90.2,1.2119296]
[1772688876680,4.2452251,90.25,90.2,1.2119296]
[1772688877268,11.08045518,90.249,90.202,1.2119296]
[1772688879872,11.08045518,90.249,90.204,1.2119296]
[1772688882003,11.07922755,90.259,90.206,1.2119296]
[1772688885073,4.2452251,90.25,90.208,1.2119296]
[1772688886084,4.2452251,90.26,90.208,1.2119296]
[1772688886290,4.2452251,90.25,90.208,1.2119296]
[1772688887587,11.08029138,90.251,90.21,1.2119296]
[1772688887769,27.69039918,90.284,90.21,1.2119296]
[1772688887972,4.2452251,90.27,90.21,1.2119296]
[1772688888672,4.2452251,90.26,90.21,1.2119296]
[1772688889788,4.2452251,90.24,90.212,1.2119296]
[1772688890770,4.2452251,90.24,90.199,27.7162328]
[1772688890771,4.2452251,90.25,90.214,1.2119296]
[1772688893893,11.08045518,90.249,90.215,12.29656075]
[1772688894070,11.08045518,90.249,90.216,1.2119296]
[1772688896702,11.08045518,90.249,90.218,1.2119296]
[1772688897397,4.2452251,90.23,90.177,1.2119296]
[1772688897603,4.2452251,90.22,90.177,1.2119296]
[1772688898694,11.0841397,90.219,90.179,1.2119296]
[1772688898893,4.2452251,90.21,90.171,1.2119296]
[1772688899080,4.2452251,90.2,90.171,1.2119296]
[1772688900678,4.2452251,90.21,90.172,11.08991704]
[1772688900895,4.2452251,90.21,90.173,1.2119296]
[1772688901680,3.69383402,90.229,90.173,1.2119296]
[1772688901902,4.2452251,90.21,90.173,1.2119296]
[1772688902111,3.69383402,90.229,90.173,1.2119296]
[1772688902398,4.2452251,90.26,90.177,1.2119296]
[1772688902602,4.2452251,90.26,90.176,4.82477569]
[1772688902603,4.2452251,90.24,90.179,1.2119296]
[1772688903075,4.2452251,90.25,90.179,1.2119296]
[1772688903272,3.69383402,90.281,90.179,1.2119296]
[1772688903273,4.2452251,90.26,90.179,1.2119296]
[1772688903475,4.2452251,90.25,90.179,1.2119296]
[1772688905504,4.2452251,90.25,90.168,4.82477569]
[1772688905505,11.08045518,90.249,90.181,1.2119296]
[1772688906699,11.08045518,90.249,90.183,1.2119296]
[1772688908203,38.78159314,90.249,90.183,1.2119296]
[1772688908889,38.78159314,90.249,90.184,38.80954492]
[1772688909088,38.78159314,90.249,90.185,1.2119296]
[1772688910981,38.78159314,90.249,90.187,1.2119296]
[1772688911180,11.08045518,90.249,90.187,1.2119296]
[1772688913900,38.78159314,90.249,90.189,1.2119296]
[1772688916607,1.00349215,90.297,90.261,0.71905879]
[1772688918494,1.00349215,90.297,90.263,0.71954161]
[1772688918701,0.2,90.31,90.263,0.71954161]
[1772688919801,0.2,90.31,90.265,0.72026106]
[1772688921210,1.14858659,90.31,90.265,0.72026106]
[1772688922619,1.14858659,90.31,90.267,0.72071906]
[1772688923208,0.2,90.32,90.269,3.69383402]
[1772688923518,4.4452251,90.39,90.35,5.58022718]
[1772688923724,4.2452251,90.38,90.35,5.58022718]
[1772688924097,11.06537929,90.372,90.35,5.58022718]
[1772688924304,11.06482699,90.377,90.35,5.58022718]
[1772688925501,0.2,90.39,90.351,0.93469293]
[1772688925730,11.06329309,90.389,90.352,0.93469293]
[1772688926100,4.2452251,90.38,90.35,5.58022718]
[1772688926527,11.06329309,90.389,90.35,5.58022718]
[1772688926826,38.72152583,90.389,90.35,5.58022718]
[1772688927125,4.2452251,90.37,90.327,0.97098238]
[1772688927304,4.2452251,90.37,90.328,11.07076432]
[1772688927305,11.06574157,90.369,90.328,11.07076432]
[1772688927621,11.06574157,90.369,90.328,12.0417467]
[1772688928198,38.73009549,90.369,90.321,0.97098238]
[1772688928402,4.2452251,90.36,90.317,15.18722219]
[1772688928620,11.06574157,90.369,90.319,0.97098238]
[1772688928819,4.2452251,90.36,90.319,0.97098238]
[1772688929021,4.2452251,90.36,90.318,11.07199007]
[1772688929322,4.2452251,90.36,90.317,15.18722219]
[1772688929323,38.73438174,90.359,90.317,15.18722219]
[1772688930123,38.73438174,90.359,90.313,11.07257019]
[1772688930716,4.2452251,90.35,90.307,11.07323693]
[1772688930918,4.2452251,90.34,90.298,0.97098238]
[1772688931629,4.2452251,90.34,90.299,12.04530213]
[1772688932434,4.2452251,90.35,90.3,0.97098238]
[1772688932938,0.02035882,90.348,90.302,0.97098238]
[1772688933537,38.73866893,90.349,90.302,0.97098238]
[1772688933538,0.02035882,90.339,90.302,0.97098238]
[1772688935440,0.02683409,90.338,90.302,0.97098238]
[1772688936725,11.0694163,90.339,90.296,12.04561503]
[1772688936726,0.03001233,90.329,90.296,12.04561503]
[1772688936921,0.03001233,90.329,90.297,0.97098238]
[1772688938640,0.03627355,90.328,90.29,0.97098238]
[1772688938835,0.03627355,90.328,90.282,0.97098238]
[1772688939940,0.0393469,90.319,90.282,0.97098238]
[1772688940741,0.04240321,90.318,90.283,11.07628235]
[1772688941237,0.04240321,90.318,90.282,0.97098238]
[1772688941444,0.04540694,90.309,90.278,11.07685308]
[1772688942341,0.04540694,90.309,90.276,0.97098238]
[1772688944638,0.04540694,90.309,90.277,0.97098238]
[1772688944639,0.05419296,90.308,90.277,0.97098238]
[1772688953532,0.05419296,90.308,90.27,0.97098238]
[1772688953833,0.08399707,90.299,90.27,0.97098238]
[1772688954034,0.08399707,90.299,90.254,7.4771935]
[1772688954035,0.08399707,90.299,90.26,0.97098238]
[1772688954245,0.08399707,90.289,90.26,0.97098238]
[1772688955750,0.08399707,90.289,90.262,0.97098238]
[1772688957835,0.09151781,90.288,90.255,0.97098238]
[1772688960260,0.09876236,90.279,90.255,0.97098238]
[1772688960953,11.0755463,90.289,90.255,0.97098238]
[1772688961464,3.69383402,90.299,90.257,0.97098238]
[1772688961648,0.101118,90.298,90.257,0.97098238]
[1772688962355,27.68514109,90.302,90.257,0.97098238]
[1772688963859,0.10343826,90.305,90.259,0.97098238]
[1772688966564,0.10343826,90.305,90.261,0.97098238]
[1772688966742,11.07309349,90.309,90.261,0.97098238]
[1772688967094,11.18775335,90.309,90.261,0.97098238]
[1772688967464,0.11465986,90.308,90.263,0.97098238]
[1772688971951,0.11465986,90.308,90.264,11.07861384]
[1772688972169,0.11465986,90.308,90.265,0.97098238]
[1772688975065,0.11465986,90.308,90.267,0.97098238]
[1772688976073,11.07309349,90.309,90.267,0.97098238]
[1772688977271,0.13328615,90.317,90.269,0.97098238]
[1772688977861,38.7442437,90.336,90.269,0.97098238]
[1772688977862,11.06978391,90.336,90.269,0.97098238]
[1772688979077,0.14094233,90.348,90.274,1.00743091]
[1772688983969,0.14094233,90.348,90.276,1.00743091]
[1772688984170,0.14094233,90.348,90.278,1.00743091]
[1772688984370,0.14094233,90.348,90.279,1.00743091]
[1772688984558,0.14094233,90.348,90.279,8.10727066]
[1772688984761,0.14094233,90.348,90.281,1.00743091]
[1772688984968,0.14094233,90.348,90.282,1.00743091]
[1772688985273,0.97558903,90.319,90.282,6.50809854]
[1772688986258,0.97558903,90.329,90.283,38.76698824]
[1772688986557,1.04606753,90.337,90.283,38.76698824]
[1772688986758,1.04606753,90.329,90.283,38.76698824]
[1772688987170,1.04606753,90.329,90.284,1.01863174]
[1772688987670,1.04606753,90.327,90.286,1.01863174]
[1772688988268,4.23576915,90.32,90.285,11.07603699]
[1772688988479,1.04606753,90.309,90.282,5.45748167]
[1772688988663,38.74767513,90.328,90.282,5.45748167]
[1772688988664,4.23576915,90.3,90.282,5.33897463]
[1772688989071,4.23576915,90.29,90.261,1.05182888]
[1772688990083,4.23576915,90.3,90.261,1.05182888]
[1772688990579,4.23576915,90.3,90.263,1.05182888]
[1772688991172,4.23576915,90.31,90.263,1.05182888]
[1772688994980,0.0223179,90.308,90.265,1.05182888]
[1772688997783,38.75582721,90.309,90.265,1.05182888]
[1772688997784,0.02836248,90.299,90.265,1.05182888]
[1772688998084,0.03133622,90.289,90.259,11.07913274]
[1772688998283,0.03133622,90.289,90.26,1.05182888]
[1772688999182,4.2401547,90.28,90.25,1.05182888]
[1772688999389,0.03426369,90.279,90.241,1.05182888]
[1772688999873,0.03426369,90.278,90.241,1.05182888]
[1772689000189,0.03426369,90.278,90.243,1.05182888]
[1772689003885,0.03426369,90.278,90.217,55.42135658]
[1772689003886,0.04580523,90.259,90.219,1.05182888]
[1772689005982,0.04952649,90.258,90.221,1.05182888]
[1772689008288,0.04952649,90.258,90.223,1.05182888]
[1772689008795,0.05493844,90.249,90.217,1.05182888]
[1772689008974,0.05493844,90.249,90.218,1.05182888]
[1772689010896,0.05493844,90.249,90.207,7.29372257]
[1772689011099,0.05493844,90.249,90.208,1.05182888]
[1772689011287,0.05493844,90.249,90.209,1.05182888]
[1772689012886,0.06355262,90.248,90.211,1.05182888]
[1772689014206,0.0652175,90.239,90.207,8.34555145]
[1772689014506,0.0652175,90.229,90.207,8.34555145]
[1772689014705,0.0652175,90.229,90.207,1.05182888]
[1772689015202,0.06686901,90.228,90.207,1.05182888]
[1772689019099,11.08168308,90.239,90.207,1.05182888]
[1772689019300,11.08168308,90.239,90.209,1.05182888]
[1772689019506,11.15500154,90.239,90.209,1.05182888]
[1772689019987,0.07331846,90.239,90.209,1.05182888]
[1772689020188,0.07331846,90.239,90.19,1.05182888]
[1772689020388,0.07331846,90.239,90.191,1.05182888]
[1772689020800,0.07486768,90.244,90.191,1.05182888]
[1772689021189,4.2401547,90.24,90.191,1.05182888]
[1772689021498,0.07642723,90.239,90.191,1.05182888]
[1772689022004,0.07797097,90.238,90.193,1.05182888]
[1772689022205,0.07797097,90.229,90.193,1.05182888]
[1772689024312,0.07797097,90.229,90.195,1.05182888]
[1772689025387,0.08243349,90.219,90.19,11.08765211]
[1772689025608,0.08243349,90.199,90.18,0.1]
[1772689025804,0.08243349,90.199,90.18,0.01758786]
[1772689026111,4.2401547,90.19,90.18,0.01758786]
[1772689026312,11.08782667,90.189,90.18,0.01758786]
[1772689027436,27.71740141,90.197,90.18,0.01758786]
[1772689027953,4.2401547,90.19,90.155,1.09303495]
[1772689028330,4.2401547,90.19,90.16,1.19303495]
[1772689030331,38.80739335,90.189,90.16,1.19303495]
[1772689031737,11.08782667,90.189,90.162,1.09303495]
[1772689033554,11.08782667,90.189,90.164,1.09303495]
[1772689033747,11.08672032,90.198,90.164,1.09303495]
[1772689036759,11.08585998,90.205,90.166,1.09303495]
[1772689036957,24.5855666,90.206,90.166,1.09303495]
[1772689037958,35.67133851,90.206,90.166,1.09303495]
[1772689038960,35.67133851,90.206,90.16,0.1]
[1772689038961,35.67133851,90.206,90.168,1.09303495]
[1772689040750,35.67133851,90.206,90.17,1.09303495]
[1772689042563,0.02494339,90.205,90.17,1.09303495]
[1772689044657,0.02740323,90.199,90.17,1.09303495]
[1772689044854,63.38568123,90.206,90.171,1.09303495]
[1772689045946,63.38568123,90.206,90.173,1.09303495]
[1772689048243,35.67133851,90.206,90.175,1.09303495]
[1772689048772,0.0332885,90.179,90.136,1.09303495]
[1772689049075,4.27458182,90.16,90.137,1.09303495]
[1772689049960,4.2401547,90.2,90.126,1.09303495]
[1772689049961,4.2401547,90.15,90.126,1.09303495]
[1772689050174,11.09274645,90.149,90.126,1.09303495]
[1772689051259,0.03554722,90.153,90.126,1.09303495]
[1772689052155,0.03776939,90.159,90.131,1.09303495]
[1772689052775,0.03776939,90.158,90.131,1.09303495]
[1772689053148,0.03776939,90.158,90.12,0.1]
[1772689053469,38.82030633,90.159,90.12,0.1]
[1772689053470,4.2401547,90.14,90.12,0.1]
[1772689054455,4.2401547,90.13,90.12,0.1]
[1772689055458,4.2401547,90.14,90.12,0.1]
[1772689055649,4.2401547,90.15,90.121,1.11248567]
[1772689055855,11.09077801,90.165,90.121,1.11248567]
[1772689056166,4.2401547,90.16,90.121,1.11248567]
[1772689056874,1.10608997,90.139,90.12,0.1]
[1772689057384,1.10608997,90.157,90.12,0.1]
[1772689057675,1.10608997,90.155,90.12,0.1]
[1772689058068,5.34624467,90.15,90.12,0.1]
[1772689058662,11.09188517,90.156,90.12,0.1]
[1772689058860,11.09188517,90.156,90.121,1.00988449]
[1772689060157,11.09188517,90.156,90.123,1.00988449]
[1772689062482,11.09213124,90.154,90.123,1.00988449]
[1772689062665,1.10608997,90.153,90.123,1.00988449]
[1772689062979,11.09213124,90.154,90.103,1.00988449]
[1772689062980,1.10608997,90.129,90.103,1.00988449]
[1772689064258,4.25269021,90.12,90.09,1e-08]